[Event "Fast Chess"]
[Site "ChessKid.com"]
[Date "2020.03.27"]
[Round "3"]
[White "Halimi, Dorian"]
[Black "Dai, Lana"]
[Result "0-1"]
[ECO "D03"]
[WhiteElo "858"]
[BlackElo "1070"]
[PlyCount "34"]
[EventDate "2020.??.??"]
[TimeControl "600"]
[WhiteClock "0:07:16"]
[BlackClock "0:08:23"]

1. d4 {[%emt 0:00:00]} d5 {[%emt 0:00:04]} 2. Nf3 {[%emt 0:00:04]} Nf6 {
[%emt 0:00:05]} 3. Bg5 {[%emt 0:00:05]} Bf5 {[%emt 0:00:03]} 4. e3 {[%emt 0:00:
08]} a6 {[%emt 0:00:04]} 5. Qe2 {[%emt 0:00:05]} Nc6 {[%emt 0:00:07]} 6. Nc3 {
[%emt 0:00:05]} e6 {[%emt 0:00:04]} 7. g3 {[%emt 0:00:08]} h6 {[%emt 0:00:06]}
8. Bxf6 {[%emt 0:00:04]} Qxf6 {[%emt 0:00:05]} 9. Bg2 {[%emt 0:00:18]} Be4 {
[%emt 0:00:16]} 10. O-O {[%emt 0:00:03]} Bg6 {[%emt 0:00:18]} 11. a3 {[%emt 0:
00:10]} Bh5 {[%emt 0:00:02]} 12. b4 {[%emt 0:00:03]} Bd6 {[%emt 0:00:29]} 13.
h3 {[%emt 0:00:04]} e5 {[%emt 0:00:36]} 14. g4 {[%emt 0:00:04]} Bg6 {[%emt 0:
00:09]} 15. dxe5 {[%emt 0:00:03]} Nxe5 {[%emt 0:00:11]} 16. Nxe5 {[%emt 0:00:
05]} Qxe5 {[%emt 0:00:03]} 17. Rad1 {[%emt 0:00:07]} Qh2# {[%emt 0:00:02]
TopBrownCave won by checkmate} 0-1

[Event "Fast Chess"]
[Site "ChessKid.com"]
[Date "2020.03.27"]
[Round "3"]
[White "Donchev, Martin"]
[Black "Sasse, Gabriel"]
[Result "1-0"]
[ECO "C42"]
[WhiteElo "1022"]
[BlackElo "1114"]
[PlyCount "29"]
[EventDate "2020.??.??"]
[TimeControl "600"]
[WhiteClock "0:07:58"]
[BlackClock "0:05:21"]

1. e4 {[%emt 0:00:01]} e5 {[%emt 0:00:01]} 2. d3 {[%emt 0:00:10]} Nf6 {[%emt 0:
00:06]} 3. Nf3 {[%emt 0:00:06]} Bc5 {[%emt 0:00:02]} 4. Nxe5 {[%emt 0:00:16]}
O-O {[%emt 0:00:06]} 5. b3 {[%emt 0:00:19]} Bd4 {[%emt 0:00:03]} 6. c3 {
[%emt 0:00:12]} Bxe5 {[%emt 0:00:03]} 7. d4 {[%emt 0:00:07]} Nxe4 {[%emt 0:00:
38]} 8. dxe5 {[%emt 0:00:05]} Qh4 {[%emt 0:00:04]} 9. g3 {[%emt 0:01:07]} Nxg3
{[%emt 0:00:26]} 10. fxg3 {[%emt 0:00:18]} Qe4+ {[%emt 0:00:02]} 11. Kf2 {
[%emt 0:00:49]} Qxh1 {[%emt 0:00:04]} 12. Ba3 {[%emt 0:00:19]} d6 {[%emt 0:00:
17]} 13. exd6 {[%emt 0:00:10]} cxd6 {[%emt 0:00:02]} 14. Qxd6 {[%emt 0:00:22]}
Rd8 {[%emt 0:00:08]} 15. Qxd8# {[%emt 0:00:20] ShyDarkIsland won by checkmate}
1-0

[Event "Fast Chess"]
[Site "ChessKid.com"]
[Date "2020.03.30"]
[Round "1"]
[White "Halimi, Dorian"]
[Black "Li, Tobias"]
[Result "0-1"]
[ECO "B07"]
[WhiteElo "846"]
[BlackElo "1285"]
[PlyCount "64"]
[EventDate "2020.??.??"]
[TimeControl "600"]
[WhiteClock "0:06:18"]
[BlackClock "0:07:29"]

1. e4 {[%emt 0:00:01]} e5 {[%emt 0:00:02]} 2. d4 {[%emt 0:00:02]} d6 {[%emt 0:
00:04]} 3. d5 {[%emt 0:00:02]} Nf6 {[%emt 0:00:08]} 4. Nf3 {[%emt 0:00:04]}
Nxe4 {[%emt 0:00:03]} 5. Na3 {[%emt 0:00:08]} Be7 {[%emt 0:00:01]} 6. c3 {
[%emt 0:00:07]} Bg4 {[%emt 0:00:08]} 7. h3 {[%emt 0:00:08]} Bxf3 {[%emt 0:00:
02]} 8. gxf3 {[%emt 0:00:02]} Nf6 {[%emt 0:00:13]} 9. Bg5 {[%emt 0:00:06]} Qd7
{[%emt 0:00:02]} 10. Bxf6 {[%emt 0:00:02]} Bxf6 {[%emt 0:00:02]} 11. Bb5 {
[%emt 0:00:05]} c6 {[%emt 0:00:10]} 12. dxc6 {[%emt 0:00:03]} Nxc6 {[%emt 0:00:
01]} 13. Bxc6 {[%emt 0:00:02]} Qxc6 {[%emt 0:00:03]} 14. Qe2 {[%emt 0:00:06]}
O-O {[%emt 0:00:06]} 15. O-O-O {[%emt 0:00:04]} Rfe8 {[%emt 0:00:15]} 16. Nc2 {
[%emt 0:00:07]} e4 {[%emt 0:00:07]} 17. fxe4 {[%emt 0:00:04]} Rxe4 {[%emt 0:00:
04]} 18. Qd2 {[%emt 0:00:04]} Re5 {[%emt 0:00:11]} 19. Nd4 {[%emt 0:00:05]} Qb6
{[%emt 0:00:09]} 20. Rhg1 {[%emt 0:00:08]} Bg5 {[%emt 0:00:05]} 21. Rg2 {
[%emt 0:00:10]} Bxd2+ {[%emt 0:00:05]} 22. Rxd2 {[%emt 0:00:02]} Re1+ {[%emt 0:
00:32]} 23. Kc2 {[%emt 0:00:03]} h6 {[%emt 0:00:05]} 24. Nf5 {[%emt 0:00:05]}
Kf8 {[%emt 0:00:18]} 25. Rxg7 {[%emt 0:00:10]} Qc5 {[%emt 0:00:11]} 26. Rh7 {
[%emt 0:00:03]} Qxf5+ {[%emt 0:00:05]} 27. Rd3 {[%emt 0:00:10]} Qxh7 {[%emt 0:
00:02]} 28. Kd2 {[%emt 0:00:04]} Rd1+ {[%emt 0:00:16]} 29. Kc2 {[%emt 0:00:07]}
Rc1+ {[%emt 0:00:02]} 30. Kd2 {[%emt 0:00:03]} Rd1+ {[%emt 0:00:02]} 31. Kxd1 {
[%emt 0:00:03]} Qxd3+ {[%emt 0:00:03]} 32. Ke1 {[%emt 0:00:02]} Re8# {[%emt 0:
00:06] OnlyHungryKiwi won by checkmate} 0-1

[Event "Fast Chess"]
[Site "ChessKid.com"]
[Date "2020.03.30"]
[Round "1"]
[White "Dai, Lana"]
[Black "Barcal, Tobias"]
[Result "1-0"]
[ECO "C25"]
[WhiteElo "1113"]
[BlackElo "782"]
[PlyCount "71"]
[EventDate "2020.??.??"]
[TimeControl "600"]
[WhiteClock "0:05:49"]
[BlackClock "0:07:25"]

1. e4 {[%emt 0:00:26]} e5 {[%emt 0:00:07]} 2. Nc3 {[%emt 0:00:03]} Bb4 {
[%emt 0:00:07]} 3. Bc4 {[%emt 0:00:02]} Bxc3 {[%emt 0:00:02]} 4. dxc3 {[%emt 0:
00:03]} c6 {[%emt 0:00:03]} 5. Nf3 {[%emt 0:00:02]} d5 {[%emt 0:00:03]} 6. exd5
{[%emt 0:00:06]} cxd5 {[%emt 0:00:02]} 7. Bb5+ {[%emt 0:00:01]} Bd7 {[%emt 0:
00:13]} 8. Bxd7+ {[%emt 0:00:03]} Qxd7 {[%emt 0:00:03]} 9. O-O {[%emt 0:00:05]}
Nf6 {[%emt 0:00:07]} 10. Nxe5 {[%emt 0:00:02]} Qe6 {[%emt 0:00:11]} 11. Nf3 {
[%emt 0:00:06]} O-O {[%emt 0:00:06]} 12. Ng5 {[%emt 0:00:05]} h6 {[%emt 0:00:
08]} 13. Nxe6 {[%emt 0:00:03]} fxe6 {[%emt 0:00:08]} 14. Bf4 {[%emt 0:00:07]}
g5 {[%emt 0:00:12]} 15. Bd6 {[%emt 0:00:04]} Rd8 {[%emt 0:00:07]} 16. Be7 {
[%emt 0:00:02]} Re8 {[%emt 0:00:16]} 17. Bxf6 {[%emt 0:00:04]} Rf8 {[%emt 0:00:
03]} 18. Be7 {[%emt 0:00:02]} Rf7 {[%emt 0:00:04]} 19. Bd6 {[%emt 0:00:03]} Rd7
{[%emt 0:00:08]} 20. Bxb8 {[%emt 0:00:02]} Rxb8 {[%emt 0:00:06]} 21. c4 {
[%emt 0:00:01]} dxc4 {[%emt 0:00:04]} 22. Qxd7 {[%emt 0:00:03]} Rf8 {[%emt 0:
00:15]} 23. Qxe6+ {[%emt 0:00:03]} Rf7 {[%emt 0:00:16]} 24. Qg6+ {[%emt 0:00:
04]} Rg7 {[%emt 0:00:07]} 25. Qe8+ {[%emt 0:00:02]} Kh7 {[%emt 0:00:04]} 26.
Rae1 {[%emt 0:00:05]} c3 {[%emt 0:00:02]} 27. bxc3 {[%emt 0:00:03]} Rg8 {
[%emt 0:00:28]} 28. Re7+ {[%emt 0:00:11]} Rg7 {[%emt 0:00:04]} 29. Rxg7+ {
[%emt 0:00:04]} Kxg7 {[%emt 0:00:05]} 30. Re1 {[%emt 0:00:03]} Kf6 {[%emt 0:00:
05]} 31. Qe6+ {[%emt 0:00:02]} Kg7 {[%emt 0:00:05]} 32. Re5 {[%emt 0:00:06]}
Kh8 {[%emt 0:00:05]} 33. Qf6+ {[%emt 0:00:08]} Kh7 {[%emt 0:00:03]} 34. Re7+ {
[%emt 0:00:03]} Kg8 {[%emt 0:00:09]} 35. Re8+ {[%emt 0:00:04]} Kh7 {[%emt 0:00:
04]} 36. Qf7# {[%emt 0:00:03] TopBrownCave won by checkmate} 1-0

[Event "Fast Chess"]
[Site "ChessKid.com"]
[Date "2020.03.30"]
[Round "2"]
[White "Li, Tobias"]
[Black "Dai, Lana"]
[Result "1-0"]
[ECO "C41"]
[WhiteElo "1310"]
[BlackElo "1105"]
[PlyCount "121"]
[EventDate "2020.??.??"]
[TimeControl "600"]
[WhiteClock "0:05:02"]
[BlackClock "0:06:53"]

1. e4 {[%emt 0:00:01]} e5 {[%emt 0:00:02]} 2. Nf3 {[%emt 0:00:04]} Nc6 {
[%emt 0:00:01]} 3. d4 {[%emt 0:00:01]} d6 {[%emt 0:00:08]} 4. dxe5 {[%emt 0:00:
03]} dxe5 {[%emt 0:00:03]} 5. Qxd8+ {[%emt 0:00:04]} Nxd8 {[%emt 0:00:02]} 6.
Bc4 {[%emt 0:00:03]} Nc6 {[%emt 0:00:17]} 7. O-O {[%emt 0:00:06]} Bg4 {[%emt 0:
00:03]} 8. Be2 {[%emt 0:00:10]} Bc5 {[%emt 0:00:23]} 9. h3 {[%emt 0:00:04]} Bh5
{[%emt 0:00:03]} 10. Nc3 {[%emt 0:00:07]} Nf6 {[%emt 0:00:02]} 11. Bg5 {
[%emt 0:00:13]} O-O-O {[%emt 0:00:11]} 12. Rad1 {[%emt 0:00:14]} Rxd1 {[%emt 0:
00:04]} 13. Rxd1 {[%emt 0:00:06]} Nd4 {[%emt 0:00:15]} 14. Nxd4 {[%emt 0:00:09]
} Bxe2 {[%emt 0:00:03]} 15. Ncxe2 {[%emt 0:00:02]} exd4 {[%emt 0:00:04]} 16.
Nxd4 {[%emt 0:00:01]} Bxd4 {[%emt 0:00:02]} 17. Rxd4 {[%emt 0:00:02]} Rd8 {
[%emt 0:00:11]} 18. Rxd8+ {[%emt 0:00:04]} Kxd8 {[%emt 0:00:01]} 19. Bxf6+ {
[%emt 0:00:02]} gxf6 {[%emt 0:00:01]} 20. f4 {[%emt 0:00:01]} Ke7 {[%emt 0:00:
05]} 21. Kf2 {[%emt 0:00:02]} Ke6 {[%emt 0:00:01]} 22. Ke3 {[%emt 0:00:00]} f5
{[%emt 0:00:01]} 23. g4 {[%emt 0:00:05]} fxg4 {[%emt 0:00:03]} 24. hxg4 {
[%emt 0:00:02]} c5 {[%emt 0:00:03]} 25. c4 {[%emt 0:00:03]} a6 {[%emt 0:00:07]}
26. f5+ {[%emt 0:00:02]} Ke5 {[%emt 0:00:02]} 27. b3 {[%emt 0:00:03]} f6 {
[%emt 0:00:01]} 28. Kf3 {[%emt 0:00:03]} b5 {[%emt 0:00:07]} 29. cxb5 {[%emt 0:
00:05]} axb5 {[%emt 0:00:01]} 30. a3 {[%emt 0:00:10]} c4 {[%emt 0:00:02]} 31.
bxc4 {[%emt 0:00:01]} bxc4 {[%emt 0:00:01]} 32. Ke3 {[%emt 0:00:04]} Kd6 {
[%emt 0:00:19]} 33. a4 {[%emt 0:00:01]} Kc5 {[%emt 0:00:03]} 34. a5 {[%emt 0:
00:07]} Kb5 {[%emt 0:00:08]} 35. Kd4 {[%emt 0:00:03]} c3 {[%emt 0:00:20]} 36.
Kxc3 {[%emt 0:00:03]} Kxa5 {[%emt 0:00:01]} 37. Kd4 {[%emt 0:00:02]} Kb5 {
[%emt 0:00:02]} 38. e5 {[%emt 0:00:01]} fxe5+ {[%emt 0:00:04]} 39. Kxe5 {
[%emt 0:00:01]} Kc6 {[%emt 0:00:01]} 40. f6 {[%emt 0:00:01]} Kd7 {[%emt 0:00:
02]} 41. Kf5 {[%emt 0:00:01]} Ke8 {[%emt 0:00:02]} 42. g5 {[%emt 0:00:01]} Kf8
{[%emt 0:00:03]} 43. g6 {[%emt 0:00:01]} hxg6+ {[%emt 0:00:02]} 44. Kxg6 {
[%emt 0:00:01]} Kg8 {[%emt 0:00:09]} 45. Kf5 {[%emt 0:00:06]} Kf7 {[%emt 0:00:
09]} 46. Ke5 {[%emt 0:00:02]} Ke8 {[%emt 0:00:05]} 47. Ke6 {[%emt 0:00:02]} Kf8
{[%emt 0:00:25]} 48. f7 {[%emt 0:00:05]} Kg7 {[%emt 0:00:05]} 49. Ke7 {[%emt 0:
00:02]} Kg6 {[%emt 0:00:03]} 50. f8=Q {[%emt 0:00:02]} Kg5 {[%emt 0:00:01]} 51.
Qf7 {[%emt 0:00:01]} Kg4 {[%emt 0:00:05]} 52. Qf6 {[%emt 0:00:02]} Kg3 {
[%emt 0:00:03]} 53. Qf5 {[%emt 0:00:02]} Kg2 {[%emt 0:00:01]} 54. Qf4 {[%emt 0:
00:00]} Kg1 {[%emt 0:00:03]} 55. Qf3 {[%emt 0:00:01]} Kh2 {[%emt 0:00:03]} 56.
Qg4 {[%emt 0:00:01]} Kh1 {[%emt 0:00:04]} 57. Ke6 {[%emt 0:00:01]} Kh2 {
[%emt 0:00:02]} 58. Ke5 {[%emt 0:00:01]} Kh1 {[%emt 0:00:01]} 59. Kf4 {[%emt 0:
00:01]} Kh2 {[%emt 0:00:01]} 60. Kf3 {[%emt 0:00:01]} Kh1 {[%emt 0:00:01]} 61.
Qg2# {[%emt 0:00:00] OnlyHungryKiwi won by checkmate} 1-0

[Event "Fast Chess"]
[Site "ChessKid.com"]
[Date "2020.03.30"]
[Round "2"]
[White "Barcal, Tobias"]
[Black "Halimi, Dorian"]
[Result "0-1"]
[ECO "B01"]
[WhiteElo "730"]
[BlackElo "893"]
[PlyCount "40"]
[EventDate "2020.??.??"]
[TimeControl "600"]
[WhiteClock "0:08:34"]
[BlackClock "0:07:37"]

1. e4 {[%emt 0:00:04]} d5 {[%emt 0:00:02]} 2. Qh5 {[%emt 0:00:02]} dxe4 {
[%emt 0:00:07]} 3. d3 {[%emt 0:00:09]} e3 {[%emt 0:00:01]} 4. fxe3 {[%emt 0:00:
03]} Nf6 {[%emt 0:00:04]} 5. Qd1 {[%emt 0:00:06]} e6 {[%emt 0:00:04]} 6. e4 {
[%emt 0:00:09]} Nc6 {[%emt 0:00:05]} 7. Bg5 {[%emt 0:00:03]} Nd4 {[%emt 0:00:
07]} 8. Bxf6 {[%emt 0:00:00]} Qxf6 {[%emt 0:00:06]} 9. c3 {[%emt 0:00:25]} Nb5
{[%emt 0:00:04]} 10. c4 {[%emt 0:00:06]} Qxb2 {[%emt 0:00:07]} 11. Qb3 {
[%emt 0:00:07]} Qxa1 {[%emt 0:00:03]} 12. Qxb5+ {[%emt 0:00:08]} c6 {[%emt 0:
00:08]} 13. Qg5 {[%emt 0:00:14]} f6 {[%emt 0:00:02]} 14. Qe3 {[%emt 0:00:09]}
Qxb1+ {[%emt 0:00:03]} 15. Qc1 {[%emt 0:00:06]} Qxc1+ {[%emt 0:00:02]} 16. Ke2
{[%emt 0:00:09]} e5 {[%emt 0:00:04]} 17. Kf2 {[%emt 0:00:07]} Bc5+ {[%emt 0:00:
02]} 18. Kg3 {[%emt 0:00:05]} Qxf1 {[%emt 0:00:07]} 19. Kh4 {[%emt 0:00:06]}
Qf4+ {[%emt 0:00:06]} 20. g4 {[%emt 0:00:05]} Qxg4# {[%emt 0:00:03]
FullMagentaEclipse won by checkmate} 0-1

[Event "Fast Chess"]
[Site "ChessKid.com"]
[Date "2020.03.30"]
[Round "3"]
[White "Dai, Lana"]
[Black "Halimi, Dorian"]
[Result "1-0"]
[ECO "B11"]
[WhiteElo "1112"]
[BlackElo "869"]
[PlyCount "61"]
[EventDate "2020.??.??"]
[TimeControl "600"]
[WhiteClock "0:06:39"]
[BlackClock "0:04:56"]

1. e4 {[%emt 0:00:00]} d5 {[%emt 0:00:04]} 2. d3 {[%emt 0:00:12]} c6 {[%emt 0:
00:04]} 3. Nc3 {[%emt 0:00:05]} Nf6 {[%emt 0:00:05]} 4. Nf3 {[%emt 0:00:04]}
Bg4 {[%emt 0:00:05]} 5. Be2 {[%emt 0:00:08]} Na6 {[%emt 0:00:08]} 6. exd5 {
[%emt 0:00:12]} cxd5 {[%emt 0:00:03]} 7. d4 {[%emt 0:00:06]} e6 {[%emt 0:00:06]
} 8. a3 {[%emt 0:00:06]} b6 {[%emt 0:00:08]} 9. h3 {[%emt 0:00:07]} Bxf3 {
[%emt 0:00:04]} 10. Bxf3 {[%emt 0:00:03]} Rc8 {[%emt 0:00:10]} 11. Bg5 {
[%emt 0:00:05]} Be7 {[%emt 0:00:06]} 12. Be2 {[%emt 0:00:16]} O-O {[%emt 0:00:
03]} 13. Bxa6 {[%emt 0:00:04]} Rc7 {[%emt 0:00:06]} 14. Bf4 {[%emt 0:00:09]}
Rd7 {[%emt 0:00:05]} 15. Bb5 {[%emt 0:00:06]} Rb7 {[%emt 0:00:03]} 16. Bc6 {
[%emt 0:00:05]} Rc7 {[%emt 0:00:04]} 17. Bxc7 {[%emt 0:00:04]} Qxc7 {[%emt 0:
00:02]} 18. Bb5 {[%emt 0:00:04]} Ne4 {[%emt 0:00:07]} 19. Nxe4 {[%emt 0:00:06]}
dxe4 {[%emt 0:00:04]} 20. d5 {[%emt 0:00:27]} Rd8 {[%emt 0:00:10]} 21. Qe2 {
[%emt 0:00:34]} exd5 {[%emt 0:00:05]} 22. Rd1 {[%emt 0:00:11]} f6 {[%emt 0:00:
12]} 23. Ba4 {[%emt 0:00:16]} Kh8 {[%emt 0:00:07]} 24. Bb3 {[%emt 0:00:08]} Qc6
{[%emt 0:00:18]} 25. c3 {[%emt 0:00:30]} a5 {[%emt 0:00:06]} 26. a4 {[%emt 0:
00:09]} Bd6 {[%emt 0:00:09]} 27. O-O {[%emt 0:00:15]} Bc7 {[%emt 0:00:07]} 28.
Qh5 {[%emt 0:00:20]} Qd6 {[%emt 0:00:06]} 29. g3 {[%emt 0:00:06]} Re8 {[%emt 0:
00:16]} 30. Qxe8+ {[%emt 0:00:06]} Qf8 {[%emt 0:00:10]} 31. Qxf8# {[%emt 0:00:
02] TopBrownCave won by checkmate} 1-0

[Event "Fast Chess"]
[Site "ChessKid.com"]
[Date "2020.03.31"]
[Round "1"]
[White "Sasse, Gabriel"]
[Black "Donchev, Martin"]
[Result "1-0"]
[ECO "C55"]
[WhiteElo "1219"]
[BlackElo "963"]
[PlyCount "57"]
[EventDate "2020.??.??"]
[TimeControl "900"]
[WhiteClock "0:05:01"]
[BlackClock "0:12:15"]

1. e4 {[%emt 0:00:00]} e5 {[%emt 0:00:09]} 2. Nf3 {[%emt 0:00:01]} Nc6 {
[%emt 0:00:04]} 3. Bc4 {[%emt 0:00:00]} Bb4 {[%emt 0:00:07]} 4. Nc3 {[%emt 0:
00:01]} Nf6 {[%emt 0:00:19]} 5. h3 {[%emt 0:00:03]} d6 {[%emt 0:00:14]} 6. a3 {
[%emt 0:00:03]} Bc5 {[%emt 0:00:12]} 7. O-O {[%emt 0:00:09]} O-O {[%emt 0:00:
29]} 8. Nd5 {[%emt 0:00:07]} Nxe4 {[%emt 0:03:09]} 9. b4 {[%emt 0:00:20]} Bb6 {
[%emt 0:00:10]} 10. Nc3 {[%emt 0:00:07]} a5 {[%emt 0:00:17]} 11. bxa5 {[%emt 0:
00:03]} Rxa5 {[%emt 0:00:08]} 12. Nxe4 {[%emt 0:00:03]} d5 {[%emt 0:00:24]} 13.
Nfg5 {[%emt 0:00:04]} dxe4 {[%emt 0:00:07]} 14. Nxe4 {[%emt 0:00:06]} Ra4 {
[%emt 0:00:10]} 15. Bd3 {[%emt 0:00:04]} f5 {[%emt 0:00:27]} 16. Nc3 {[%emt 0:
00:08]} e4 {[%emt 0:00:10]} 17. Nxa4 {[%emt 0:00:03]} exd3 {[%emt 0:00:06]} 18.
Nxb6 {[%emt 0:00:03]} cxb6 {[%emt 0:00:15]} 19. cxd3 {[%emt 0:00:03]} Qf6 {
[%emt 0:00:13]} 20. Rb1 {[%emt 0:00:04]} Ne5 {[%emt 0:00:24]} 21. Bb2 {[%emt 0:
00:05]} f4 {[%emt 0:00:22]} 22. Re1 {[%emt 0:00:03]} Re8 {[%emt 0:00:23]} 23.
g3 {[%emt 0:00:26]} fxg3 {[%emt 0:00:15]} 24. fxg3 {[%emt 0:00:02]} Bxh3 {
[%emt 0:00:13]} 25. Qh5 {[%emt 0:00:20]} Qe6 {[%emt 0:00:38]} 26. Rxe5 {
[%emt 0:00:07]} Qxe5 {[%emt 0:00:04]} 27. Bxe5 {[%emt 0:00:04]} Be6 {[%emt 0:
00:19]} 28. Qg5 {[%emt 0:00:04]} Ba2 {[%emt 0:00:11]} 29. Qxg7# {[%emt 0:00:03]
LimeFarActor won by checkmate} 1-0

[Event "Fast Chess"]
[Site "ChessKid.com"]
[Date "2020.03.31"]
[Round "1"]
[White "Halimi, Dorian"]
[Black "Rosenkranz, Benjamin"]
[Result "0-1"]
[ECO "C42"]
[WhiteElo "854"]
[BlackElo "1172"]
[PlyCount "110"]
[EventDate "2020.??.??"]
[TimeControl "900"]
[WhiteClock "0:07:37"]
[BlackClock "0:08:51"]

1. e4 {[%emt 0:00:01]} e5 {[%emt 0:00:04]} 2. Nc3 {[%emt 0:00:05]} Nf6 {
[%emt 0:00:08]} 3. d3 {[%emt 0:00:04]} Nc6 {[%emt 0:00:05]} 4. Nf3 {[%emt 0:00:
04]} Bb4 {[%emt 0:00:08]} 5. Bg5 {[%emt 0:00:06]} O-O {[%emt 0:00:07]} 6. Qd2 {
[%emt 0:00:06]} h6 {[%emt 0:00:07]} 7. Bxf6 {[%emt 0:00:03]} Qxf6 {[%emt 0:00:
10]} 8. a3 {[%emt 0:00:04]} Bxc3 {[%emt 0:00:09]} 9. Qxc3 {[%emt 0:00:04]} d6 {
[%emt 0:00:05]} 10. g3 {[%emt 0:00:12]} Qxf3 {[%emt 0:00:12]} 11. Rg1 {[%emt 0:
00:05]} Qf6 {[%emt 0:00:33]} 12. Be2 {[%emt 0:00:09]} Be6 {[%emt 0:00:34]} 13.
Bd1 {[%emt 0:00:23]} Rad8 {[%emt 0:00:10]} 14. Qd2 {[%emt 0:00:09]} Qg5 {
[%emt 0:00:06]} 15. Qxg5 {[%emt 0:00:06]} hxg5 {[%emt 0:00:04]} 16. Be2 {
[%emt 0:00:11]} g4 {[%emt 0:00:12]} 17. O-O-O {[%emt 0:00:02]} d5 {[%emt 0:00:
08]} 18. Rh1 {[%emt 0:00:12]} dxe4 {[%emt 0:00:04]} 19. dxe4 {[%emt 0:00:02]}
Rxd1+ {[%emt 0:00:04]} 20. Kxd1 {[%emt 0:00:04]} Nd4 {[%emt 0:00:06]} 21. Bd3 {
[%emt 0:00:06]} Nf3 {[%emt 0:00:16]} 22. b4 {[%emt 0:00:12]} Ng5 {[%emt 0:00:
26]} 23. c4 {[%emt 0:00:02]} Rd8 {[%emt 0:00:12]} 24. Kd2 {[%emt 0:00:09]} Bxc4
{[%emt 0:00:07]} 25. h4 {[%emt 0:00:08]} Nf3+ {[%emt 0:00:07]} 26. Ke3 {
[%emt 0:00:05]} Rxd3+ {[%emt 0:00:08]} 27. Ke2 {[%emt 0:00:04]} Rxa3+ {[%emt 0:
00:09]} 28. Kd1 {[%emt 0:00:11]} Ra1+ {[%emt 0:00:11]} 29. Kc2 {[%emt 0:00:05]}
Rxh1 {[%emt 0:00:09]} 30. Kc3 {[%emt 0:00:05]} Rc1+ {[%emt 0:00:05]} 31. Kb2 {
[%emt 0:00:03]} Rd1 {[%emt 0:00:08]} 32. Kc3 {[%emt 0:00:05]} Ba2 {[%emt 0:00:
06]} 33. Kc2 {[%emt 0:00:05]} Rb1 {[%emt 0:00:07]} 34. h5 {[%emt 0:00:12]} Ne1+
{[%emt 0:00:08]} 35. Kc3 {[%emt 0:00:04]} Rb3+ {[%emt 0:00:03]} 36. Kc4 {
[%emt 0:00:03]} Rxg3+ {[%emt 0:00:03]} 37. Kc5 {[%emt 0:00:09]} Rc3+ {[%emt 0:
00:06]} 38. Kb5 {[%emt 0:00:03]} Rc6 {[%emt 0:00:21]} 39. Ka4 {[%emt 0:00:04]}
Ra6+ {[%emt 0:00:04]} 40. Kb5 {[%emt 0:00:02]} c6+ {[%emt 0:00:03]} 41. Kc5 {
[%emt 0:00:02]} Nd3+ {[%emt 0:00:06]} 42. Kd6 {[%emt 0:00:03]} c5+ {[%emt 0:00:
03]} 43. Kc7 {[%emt 0:00:12]} cxb4 {[%emt 0:00:07]} 44. Kxb7 {[%emt 0:00:03]}
Ra3 {[%emt 0:00:03]} 45. Kc8 {[%emt 0:00:05]} b3 {[%emt 0:00:05]} 46. Kd7 {
[%emt 0:00:03]} b2 {[%emt 0:00:03]} 47. Kd6 {[%emt 0:00:02]} b1=R {[%emt 0:00:
04]} 48. Ke7 {[%emt 0:00:15]} Ra6 {[%emt 0:00:03]} 49. Kd7 {[%emt 0:00:17]}
Rab6 {[%emt 0:00:04]} 50. Kc7 {[%emt 0:00:04]} Re6 {[%emt 0:00:05]} 51. Kd7 {
[%emt 0:00:14]} Rb7+ {[%emt 0:00:06]} 52. Kd8 {[%emt 0:00:12]} Ree7 {[%emt 0:
00:06]} 53. Kc8 {[%emt 0:00:14]} Kf8 {[%emt 0:00:04]} 54. h6 {[%emt 0:00:09]}
gxh6 {[%emt 0:00:06]} 55. Kd8 {[%emt 0:00:08]} Rb8# {[%emt 0:00:03]
FineBeamingStage won by checkmate} 0-1

[Event "Fast Chess"]
[Site "ChessKid.com"]
[Date "2020.03.31"]
[Round "2"]
[White "Dai, Lana"]
[Black "Sasse, Gabriel"]
[Result "1-0"]
[ECO "C50"]
[WhiteElo "1152"]
[BlackElo "1210"]
[PlyCount "109"]
[EventDate "2020.??.??"]
[TimeControl "900"]
[WhiteClock "0:11:17"]
[BlackClock "0:08:46"]

1. e4 {[%emt 0:00:00]} e5 {[%emt 0:00:01]} 2. Nc3 {[%emt 0:00:05]} Nc6 {
[%emt 0:00:01]} 3. Bc4 {[%emt 0:00:05]} Nf6 {[%emt 0:00:03]} 4. Nf3 {[%emt 0:
00:02]} Bc5 {[%emt 0:00:02]} 5. d3 {[%emt 0:00:02]} Ng4 {[%emt 0:00:02]} 6. d4
{[%emt 0:00:24]} Nxd4 {[%emt 0:00:06]} 7. Nxd4 {[%emt 0:00:08]} exd4 {[%emt 0:
00:03]} 8. Qxg4 {[%emt 0:00:18]} d6 {[%emt 0:00:06]} 9. Qf4 {[%emt 0:00:16]}
O-O {[%emt 0:00:06]} 10. Nd5 {[%emt 0:00:21]} Bb4+ {[%emt 0:00:13]} 11. c3 {
[%emt 0:00:13]} dxc3 {[%emt 0:00:03]} 12. bxc3 {[%emt 0:00:05]} Bc5 {[%emt 0:
00:05]} 13. Qg3 {[%emt 0:00:13]} Be6 {[%emt 0:00:07]} 14. Bh6 {[%emt 0:00:08]}
Bxf2+ {[%emt 0:00:26]} 15. Kxf2 {[%emt 0:00:10]} g6 {[%emt 0:00:14]} 16. Bxf8 {
[%emt 0:00:06]} Qxf8 {[%emt 0:00:05]} 17. Nf6+ {[%emt 0:00:06]} Kh8 {[%emt 0:
00:06]} 18. Qh4 {[%emt 0:00:09]} Qg7 {[%emt 0:00:19]} 19. Bxe6 {[%emt 0:00:14]}
fxe6 {[%emt 0:00:03]} 20. Ke1 {[%emt 0:00:18]} Rf8 {[%emt 0:00:14]} 21. Rf1 {
[%emt 0:00:11]} g5 {[%emt 0:00:08]} 22. Qxh7+ {[%emt 0:00:21]} Qxh7 {[%emt 0:
00:02]} 23. Nxh7 {[%emt 0:00:01]} Rxf1+ {[%emt 0:00:01]} 24. Kxf1 {[%emt 0:00:
02]} Kxh7 {[%emt 0:00:01]} 25. Re1 {[%emt 0:00:02]} d5 {[%emt 0:00:01]} 26.
exd5 {[%emt 0:00:02]} exd5 {[%emt 0:00:01]} 27. Re7+ {[%emt 0:00:02]} Kg6 {
[%emt 0:00:02]} 28. Rxc7 {[%emt 0:00:01]} Kh5 {[%emt 0:00:03]} 29. Rxb7 {
[%emt 0:00:02]} Kg4 {[%emt 0:00:02]} 30. h3+ {[%emt 0:00:06]} Kg3 {[%emt 0:00:
02]} 31. Rf7 {[%emt 0:00:14]} a5 {[%emt 0:00:04]} 32. Rf3+ {[%emt 0:00:03]} Kh4
{[%emt 0:00:03]} 33. Rf5 {[%emt 0:00:06]} g4 {[%emt 0:00:03]} 34. hxg4 {
[%emt 0:00:04]} Kxg4 {[%emt 0:00:02]} 35. Rxd5 {[%emt 0:00:01]} a4 {[%emt 0:00:
01]} 36. Rd8 {[%emt 0:00:05]} Kf4 {[%emt 0:00:02]} 37. Rf8+ {[%emt 0:00:04]}
Ke4 {[%emt 0:00:02]} 38. Kf2 {[%emt 0:00:03]} Kd3 {[%emt 0:00:01]} 39. Rc8 {
[%emt 0:00:06]} Kc2 {[%emt 0:00:04]} 40. Rb8 {[%emt 0:00:14]} Kxc3 {[%emt 0:00:
03]} 41. Ke3 {[%emt 0:00:03]} Kc4 {[%emt 0:00:02]} 42. Ke4 {[%emt 0:00:03]} Kc3
{[%emt 0:00:01]} 43. g4 {[%emt 0:00:04]} Kc4 {[%emt 0:00:02]} 44. g5 {[%emt 0:
00:02]} Kc5 {[%emt 0:00:02]} 45. g6 {[%emt 0:00:02]} Kc4 {[%emt 0:00:02]} 46.
Rc8+ {[%emt 0:00:10]} Kb4 {[%emt 0:00:04]} 47. Rb8+ {[%emt 0:00:07]} Ka3 {
[%emt 0:00:01]} 48. g7 {[%emt 0:00:06]} Kxa2 {[%emt 0:00:02]} 49. g8=Q+ {
[%emt 0:00:05]} Ka1 {[%emt 0:00:03]} 50. Qg1+ {[%emt 0:00:05]} Ka2 {[%emt 0:00:
02]} 51. Qf2+ {[%emt 0:00:02]} Ka3 {[%emt 0:00:03]} 52. Qe3+ {[%emt 0:00:06]}
Ka2 {[%emt 0:00:04]} 53. Qd2+ {[%emt 0:00:02]} Ka3 {[%emt 0:00:02]} 54. Qc3+ {
[%emt 0:00:03]} Ka2 {[%emt 0:00:01]} 55. Qb2# {[%emt 0:00:01] TopBrownCave won
by checkmate} 1-0